Cogmind - Beta 11.1 @@@ ROGUE MODE // 2022.06.27 @ 12:04:01 Player: Demise Result: Destroyed by G-34 Mercenary with Small Laser Performance ------------- Evolutions (0) 0 Regions Visited (1) 200 Robots Destroyed (31) 155 Value Destroyed (582) 582 Prototype IDs (0) 0 Alien Tech Used (0) 0 Bonus (0) 0 TOTAL SCORE: 937 Bonus ------- None Cogmind --------- Core Integrity 0/250 Matter 83/300 Energy 250/250 System Corruption 5% Temperature Cool (6) Movement Rolling (110) Ox2 Location -10/Materials Parts ------- > --- POWER (1) -------- Ion Engine > --- PROPULSION (2) --- Wheel Wheel > --- UTILITY (2) ------ Heat Sink High-capacity Storage Unit > --- WEAPON (2) ------- Assault Rifle Assault Rifle > --- INVENTORY (20) --- Huge Storage Unit Structural Scanner Seismic Detector Tractor Beam Assault Rifle Assault Rifle Assault Rifle Grenade Launcher Datajack Hammer Peak State ------------ > --- POWER ------------ Light Ion Engine > --- PROPULSION ------- Wheel Wheel > --- UTILITY ---------- Medium Storage Unit Structural Scanner > --- WEAPON ----------- Assault Rifle Assault Rifle > --- INVENTORY -------- Wheel Wheel Wheel Huge Storage Unit Structural Scanner Transport Network Coupler Assault Rifle Assault Rifle Grenade Launcher Datajack [Rating: 8] Favorites ----------- Power Light Ion Engine Engine Light Ion Engine Propulsion Wheel Wheel Wheel Utility Heat Sink Device Heat Sink Storage High-capacity Storage Unit Weapon Assault Rifle Energy Gun Medium Laser Ballistic Gun Assault Rifle Build | -11 -10 ------- Run | Scr Mat Slots Evolved . | . . Power . | . . Propulsion . | . . Utility . | . . Weapon . | . . Parts Attached 31 | 9 22 Power 4 | 1 3 Engine 4 | 1 3 Core . | . . Reactor . | . . Propulsion 8 | 3 5 Treads . | . . Leg . | . . Wheel 8 | 3 5 Hover . | . . Flight . | . . Utility 11 | 3 8 Device 6 | 2 4 Storage 5 | 1 4 Processor . | . . Hackware . | . . Protection . | . . Artifact . | . . Weapon 8 | 2 6 Energy Gun 1 | 1 . Energy Cannon . | . . Ballistic Gun 7 | 1 6 Ballistic Cannon . | . . Launcher . | . . Special Weapon . | . . Impact Weapon . | . . Slashing Weapon . | . . Piercing Weapon . | . . Special Melee Weapon . | . . Unidentified Prototypes . | . . Parts Lost 7 | . 7 Power 1 | . 1 Propulsion 4 | . 4 Utility . | . . Weapon 2 | . 2 Highest Loss Streak 4 | . 4 To Critical Strikes . | . . Average Slot Usage (%) 96 | . 96 Engine 13 | . 13 Wheel 26 | . 26 Device 12 | . 12 Storage 13 | . 13 Ballistic Gun 26 | . 26 Naked Turns . | . . Heaviest Build 87 | 8 87 Greatest Support 20 | 20 20 Greatest Overweight (x) 4 | 1 4 Average Overweight (x) . | . . Largest Inventory Capacity 25 | 8 25 Average Capacity 12 | 5 14 Most Carried 11 | 5 11 Average Carried 7 | 3 8 Final Capacity 20 | 5 20 Final Carried 10 | 5 10 Class Distribution -------------------- 70% | Mutant 29% | Scavenger-Mutant Dominant Class ---------------- Mutant | -10/Materials Resources | -11 -10 ----------- Run | Scr Mat Matter Collected 789 | 313 476 Remotely . | . . Salvage Created 972 | 253 719 Parts 65 | 17 48 Haulers Intercepted 2 | . 2 Recyclers Shooed 1 | . 1 Parts Field Recycled . | . . Retrieved Matter . | . . Parts Self-Destructed . | . . Prevented . | . . Kills | -11 -10 ------- Run | Scr Mat Combat Hostiles Destroyed 16 | . 16 Guns 16 | . 16 Classes Destroyed 8 | 3 5 Worker 4 | 2 2 Tunneler 5 | 5 . Hauler 2 | . 2 Recycler 1 | 1 . Operator 1 | . 1 Watcher 2 | . 2 Swarmer 3 | . 3 Grunt 13 | . 13 Best Kill Streak 8 | 4 8 Combat Bots Only 8 | . 8 Max Kills in Single Turn 1 | 1 1 Gunslinging . | . . Exploded . | . . Melee . | . . Uniques/NPCs Destroyed . | . . Combat | -11 -10 -------- Run | Scr Mat Damage Taken 984 | . 984 Core 251 | . 251 Absorbed by Shields . | . . Regen/Repaired (Parts) 63 | . 63 Core Remaining (%) 100 | 100 . Volleys Fired 106 | 23 83 Largest 2 | 2 2 Hottest 70 | 70 40 Shots Fired 209 | 46 163 Gun 209 | 46 163 Cannon . | . . Launcher . | . . Special . | . . Kinetic 186 | 23 163 Thermal 23 | 23 . Explosive . | . . Electromagnetic . | . . Robot Hit Streak 20 | 6 20 Robot Miss Streak 4 | 1 4 Penetration Max . | . . Secondary Targets 2 | . 2 Max Gunslinging Chain 1 | . 1 Shots Hit Robots 135 | 31 104 Core Hits 51 | 13 38 Critical Kills . | . . Critical Parts Destroyed 1 | . 1 Critical Strikes 2 | 1 1 Burn 1 | 1 . Destroy 1 | . 1 Melee Attacks . | . . Impact . | . . Slashing . | . . Piercing . | . . Sneak Attacks . | . . Combat Hostiles . | . . Follow-up Attacks . | . . Damage Inflicted 1619 | 302 1317 Guns 1619 | 302 1317 Cannons . | . . Explosions . | . . Melee . | . . Ramming . | . . Kinetic 1433 | 116 1317 Thermal 186 | 186 . Explosive . | . . Electromagnetic . | . . Impact . | . . Slashing . | . . Piercing . | . . Highest Corruption 5 | . 5 Average Corruption 2 | . 2 Corruption Purged . | . . Corruption Blocked . | . . Effects 15 | . 15 Message Errors 6 | . 6 Matter Fused 3 | . 3 Energy Discharges 3 | . 3 Misfires 1 | . 1 Alerts 1 | . 1 Weapon Failures 1 | . 1 Overload Shots . | . . Overflow Damage . | . . Projectiles . | . . Explosions . | . . Melee . | . . Knockbacks . | . . Impact . | . . Kinetic . | . . Secondary . | . . Self-Inflicted Damage . | . . Shots . | . . Rammed . | . . Targets Rammed . | . . Kicked . | . . Crushed . | . . Highest Temperature 90 | 90 10 Average Temperature 32 | 32 7 Received Heat Transfer 468 | . 468 Siege Activations . | . . Robots Corrupted . | . . Combat Hostiles . | . . Parts Fried . | . . Impact Corruptions . | . . Robots Melted . | . . Combat Hostiles . | . . Parts Melted 3 | 3 . Heat Transferred 629 | 629 . Parts Sabotaged . | . . Parts Stolen . | . . Parts Stripped . | . . Power Chain Reactions . | . . Missiles Intercepted . | . . Alert | -11 -10 ------- Run | Scr Mat Peak Influence 358 | 40 358 Initial 26 | . 26 Average 141 | 18 167 Maximum Alert Level 1 | . 1 Low Security (%) 72 | 100 66 Level 1 27 | . 33 Level 2 . | . . Level 3 . | . . Level 4 . | . . Level 5 . | . . High Security . | . . Max Security . | . . Squads Dispatched 6 | . 6 Investigation 5 | . 5 Extermination . | . . Reinforcement 1 | . 1 Assault . | . . Garrison . | . . Intercept . | . . Searches Triggered . | . . Construction Impeded . | . . Haulers Reinforced . | . . Active Scanning Responses . | . . Cargo Convoy Interrupts . | . . Stealth | -11 -10 --------- Run | Scr Mat Distress Signals . | . . Communications Jammed . | . . Distress Signals . | . . Times Spotted 22 | . 22 Peak Tracking Total 9 | . 9 Tactical Retreats 1 | . 1 Traps | -11 -10 ------- Run | Scr Mat Traps Triggered 3 | . 3 Indirectly . | . . Trap Hack Attempts . | . . Triggered . | . . Disarmed . | . . Reprogrammed . | . . Reused . | . . Traps Extracted . | . . Installed . | . . Triggered . | . . Machines | -11 -10 ---------- Run | Scr Mat Machines Disabled . | . . Max in Single Turn . | . . Machines Sabotaged . | . . Garrisons Compromised . | . . Overloaded Fab Kills . | . . Hacking | -11 -10 --------- Run | Scr Mat Machines Accessed 6 | . 6 Terminals 3 | . 3 Fabricators . | . . Repair Stations 1 | . 1 Recycling Units 2 | . 2 Scanalyzers . | . . Garrison Access . | . . Total Hacks 19 | . 19 Successful 10 | . 10 Failed 9 | . 9 Catastrophic 2 | . 2 Database Lockouts . | . . Manual 10 | . 10 Terminals 10 | . 10 Fabricators . | . . Repair Stations 3 | . 3 Recycling Units 6 | . 6 Scanalyzers . | . . Garrison Access . | . . Terminal Hacks 2 | . 2 Robot Analysis 1 | . 1 Terminal Index 1 | . 1 Fabricator Hacks . | . . Repair Station Hacks 3 | . 3 Scan Component 2 | . 2 Repair 1 | . 1 Recycling Unit Hacks 1 | . 1 Retrieve Components 1 | . 1 Scanalyzer . | . . Garrison Access Hacks . | . . Unauthorized Hacks 4 | . 4 Terminals 2 | . 2 Botnet 2 | . 2 Fabricators . | . . Repair Stations . | . . Recycling Units 2 | . 2 Tunnel 2 | . 2 Scanalyzers . | . . Garrison Access . | . . Data Cores Recovered . | . . Used . | . . Hacking Detections 5 | . 5 Full Trace Events 4 | . 4 Feedback Events 1 | . 1 Corruption 1 | . 1 Feedback Blocked . | . . Robot Schematics Acquired . | . . Robots Built . | . . Authchips . | . . Time . | . . Total Robot Build Rating . | . . Part Schematics Acquired . | . . Parts Built . | . . Authchips . | . . Time . | . . Total Part Build Rating . | . . Parts Repaired 1 | . 1 Time 26 | . 26 Parts Recycled . | . . Recycled Matter . | . . Retrieved Matter . | . . Retrieved Components 7 | . 7 Parts Scanalyzed . | . . Part Schematics Acquired . | . . Parts Damaged . | . . Bothacking | -11 -10 ------------ Run | Scr Mat Used RIF Installer . | . . Robots Hacked . | . . Non-combat . | . . Combat . | . . Robot Hacks Applied . | . . Relay Couplers Released . | . . Fabnet Peak Effective % . | . . Robots Rewired . | . . Allies Hacked . | . . Hacks Repelled . | . . Allies | -11 -10 -------- Run | Scr Mat Total Allies . | . . Largest Group . | . . Highest-Rated Group . | . . Highest-Rated Ally . | . . Total Orders . | . . Ally Attacks . | . . Total Damage . | . . Kills . | . . Allies Corrupted . | . . Allies Melted . | . . Intel | -11 -10 ------- Run | Scr Mat Robot Analysis Total 1 | . 1 Derelict Logs Recovered . | . . Drone Launches . | . . Drone Recoveries . | . . Exploration | -11 -10 ------------- Run | Scr Mat Turns Passed 899 | 158 741 Spaces Moved 534 | 101 433 Core 40 | 40 . Treads . | . . Legs . | . . Wheels 494 | 61 433 Hover . | . . Flight . | . . Fastest Speed 50 | 50 80 Average Speed 87 | 70 91 Slowest Speed 140 | 100 140 Overloaded Moves . | . . Propulsion Burnouts . | . . Robots Hopped . | . . Cave-ins Triggered . | . . Exploration Rate (%) 39 | 4 74 Regions Visited 1 Branch Regions . Pre-discovered Areas 2 | . 2 Known Exits Taken . | . . Unknown Exits Taken 1 | 1 . Scrap Searched . | . . Spaces Dug . | . . Terrain Destroyed . | . . Melee . | . . Projectile . | . . AOE . | . . Terrain Rammed . | . . Walls Destroyed . | . . Machines Disabled . | . . Actions | -11 -10 --------- Run | Scr Mat Total 764 | 146 618 Wait 51 | . 51 Move 533 | 100 433 Hop . | . . Pick Up 23 | 9 14 Fast Attach 10 | 5 5 Attach 10 | 3 7 Detach 3 | 1 2 Swap 11 | 1 10 Drop 17 | 4 13 Fire 106 | 23 83 Melee . | . . Ram . | . . Kick . | . . Crush . | . . Escape Stasis . | . . Rewire . | . . Trap . | . . Miscellaneous . | . . Route ------- -11/Scrapyard -10/Materials (discovered 2 exits: [*Mat] / [*Min]) History --------- Turn | Location | Event 8 | -11/Scrapyard | Discovered new exit (range 15) 159 | -11/Scrapyard | Entered Materials 279 | -10/Materials | Discovered new exit (range 16) 327 | -10/Materials | Build established: Mutant 349 | -10/Materials | Discovered new exit (range 12) 560 | -10/Materials | Destroyed 8 combat bots 609 | -10/Materials | Repaired Assault Rifle 630 | -10/Materials | Core integrity fell below 50% 709 | -10/Materials | Core integrity fell below 20% 740 | -10/Materials | Lost 4 parts (1p2n1w) 900 | -10/Materials | Destroyed by G-34 Mercenary with Small Laser Last Messages --------------- squad. 00845_ System corrupted: Matter fused (-6). 00857_ R-06 Scavenger inserts Lgt. Ion Engine into recycling unit. 00858_ Recycling unit begins recycling process. 00859_ Recycling unit begins matter transfer process. 00860_ R-06 Scavenger inserts Wheel into recycling unit. 00863_ Acquired Seismic Detector. 00863_ R-06 Scavenger inserts Ion Engine into recycling unit. 00864_ Recycling unit begins recycling process. 00865_ System corrupted: Energy discharge (-85). 00865_ Connecting with Recycling Unit... >>Force(Tunnel) DISCOVERED[-7/Storage] 00865_ ALERT: Suspicious activity at Recycling Unit M001. Dispatching Investigation squad. 00880_ System corrupted: FCS attempts to trigger Assault Rifle. 00880_ System corrupted: Assault Rifle misfires. 00887_ G-34 Mercenary destroyed. 00887_ Switching to secondary target: G-34 Mercenary. 00899_ System corrupted: Assault Rifle jammed. Map ----- +----------------------------------------------------+ | ??????????????????????#####?????" "##+######## | | ??????????????????????### "?????" |"| "# ==! # | | ???????????????????????????????????"??"# =!! # | | ??????????????????????????????????????## =!! # | | ??????????????????????????????????????## # | | ???????????????????????????????###############+### | | ???????????????????????????????# """ # # | | ?????????????????????########### "R" """ # " | | ?????????????????????# """ ! ## " " """ / "T | | ?????????????????????# "Y" ## """ # | | ?????????????????????# ## # # | | ?????????????????????# !## ! ## *=## | | ?????????????????#######+################+###[% # | | ?????????????????# #??############# ### = + | | ?????????????????# ##### #??# ### =%# | | ?????????????????# #???# #??# !*# | | ?????????????????# #???# #??# ## | | ??????????????####+###?# #??# """ ## | | ??????????????# #?# #??# """"" ## | | ??????????????# [ "" #?# #??# """"" ## | | ??????????????# T" #?# #??# "T" """"" ### | | ??????????????# "" #?# #??# """ """ ### | | ??????????????# #?# #??# ##+### | | ??????????????# #?# #??# # | | ??????????????####+##### #### ######## # | | ?????????????????# ^ @!%=g #??##### + ! | | ?????????????????# ######k#####??## # | | ?????????????????# *#?# #???# ###### | | ?????????????????# * #?# =#???# ###### | | ?????????????????# #?# ! [##### | | ?????????????????# ### *=* +== = | | ?????????????????# + =!##### | | ?????????????????########### [#???########## | | ???????????????????????????# #????????????? | | ???????????????????????????# #????????????? | | ???????????????????????????# #????????????? | | ???????????????????????????##########????????????? | | | | | | | | | | | | | | | | | | | | | | | | | | | +----------------------------------------------------+ Best States ------------- Heat Dissipation 35 Energy Generation 10 Energy Capacity 250 Matter Stores 300 Matter Capacity 300 Sight Range 16 Terrain Scan Density 10 Evasion (%) 50 Item Schematics ----------------- None Robot Schematics ------------------ None Fabricated ------------ Nothing Alien Tech Used ----------------- None Achievements -------------- None Challenges ------------ None Game ------ Seed MinesnifferFireAutocannon Manual? 0 Play Time 00:16:18 Cumulative 653.2 hours Start 2022.06.27 @ 11:51:01 End 2022.06.27 @ 12:04:01 Sessions 1 Manual Loads 0 Difficulty Rogue Special Mode None Game No. 537 Rogue 537 Adventurer 0 Explorer 0 Win Type - Total 8 Types 7/0/0/1/0/0/0/0/0 Lore% 75 Gallery% 86 Achievement% 69 Wizard Run 0 Options --------- ASCII 0 Keyboard 1 Movement Numpad Keybinds 0 Fullscreen 1 Font 12/Terminus Map View 83x54 Tactical HUD 1 Map Filters NONE Filters NONE Steam 1 RUN: 8e4d975a-280a-4fa6-bcb2-cd7c500191ee